bitfinex/quotes_BTCUSD_20230111
["timestamp","ask_amount","ask_price","bid_price","bid_amount"]
[1673395201960,1.14620113,17446.0,17445.0,1.64853664]
[1673395203934,1.07883616,17446.0,17445.0,1.94853664]
[1673395205078,1.43808516,17446.0,17445.0,1.94853664]
[1673395205343,1.07883616,17446.0,17445.0,1.94853664]
[1673395205584,1.43808516,17446.0,17445.0,1.94853664]
[1673395205833,1.07883616,17446.0,17445.0,2.99113693]
[1673395206088,1.07883616,17446.0,17445.0,2.82763693]
[1673395209731,0.000115,17447.0,17446.0,0.3]
[1673395209986,0.000115,17447.0,17446.0,1.805643]
[1673395210213,0.000115,17447.0,17446.0,1.446394]
[1673395210744,0.000115,17447.0,17446.0,1.76891619]
[1673395211012,0.000115,17447.0,17446.0,2.06891619]
[1673395211266,0.000115,17447.0,17446.0,2.42816519]
[1673395211527,0.000115,17447.0,17446.0,2.42826171]
[1673395211785,0.019115,17447.0,17446.0,2.07001271]
[1673395214441,0.019115,17447.0,17446.0,2.17001271]
[1673395216331,0.019115,17447.0,17446.0,1.87001271]
[1673395216839,0.019115,17447.0,17446.0,1.56991619]
[1673395217090,0.19089396,17447.0,17446.0,1.56991619]
[1673395217607,0.019115,17447.0,17446.0,1.56991619]
[1673395217864,0.19089396,17447.0,17446.0,1.56991619]
[1673395218637,0.019115,17447.0,17446.0,1.56991619]
[1673395218893,0.019115,17447.0,17446.0,1.86991619]
[1673395219392,0.019115,17447.0,17446.0,1.56991619]
[1673395219645,0.19089396,17447.0,17446.0,1.56991619]
[1673395222533,0.19089396,17447.0,17446.0,1.57009982]
[1673395223336,0.4485624,17447.0,17446.0,1.57009982]
[1673395223613,0.6120624,17447.0,17446.0,1.57009982]
[1673395223870,0.6120624,17447.0,17446.0,1.56991619]
[1673395224086,0.6120624,17447.0,17446.0,1.57009982]
[1673395225190,1.50403648,17447.0,17446.0,0.42352219]
[1673395225449,2.0939412,17447.0,17446.0,0.42352219]
[1673395225716,2.36638546,17447.0,17446.0,0.42352219]
[1673395227859,2.36638546,17447.0,17446.0,0.42341424]
[1673395229668,2.79567282,17447.0,17446.0,0.42341424]
[1673395230188,3.94235674,17447.0,17446.0,0.42341424]
[1673395231529,3.77885674,17447.0,17446.0,0.42341424]
[1673395232030,3.34956938,17447.0,17446.0,0.42341424]
[1673395232815,3.77872924,17447.0,17446.0,0.42341424]
[1673395233584,4.12205319,17447.0,17446.0,0.42341424]
[1673395233900,3.77872924,17447.0,17446.0,0.42341424]
[1673395234116,2.63204532,17447.0,17446.0,0.42341424]
[1673395234889,2.97535172,17447.0,17446.0,0.42341424]
[1673395235185,2.42112863,17447.0,17446.0,0.42341424]
[1673395235435,1.63342237,17447.0,17446.0,0.99661124]
[1673395235685,1.80512645,17447.0,17446.0,0.99661124]
[1673395236193,1.63342542,17447.0,17446.0,0.99661124]
[1673395236455,2.06258528,17447.0,17446.0,0.99661124]
[1673395236711,1.63342542,17447.0,17446.0,0.99661124]
[1673395237225,2.06258528,17447.0,17446.0,0.99661124]
[1673395237478,1.63342542,17447.0,17446.0,0.99661124]
[1673395238817,1.63342542,17447.0,17446.0,1.56980824]
[1673395238818,1.10249393,17447.0,17446.0,1.56980824]
[1673395239070,1.10249393,17447.0,17446.0,1.46980824]
[1673395239581,1.10249393,17447.0,17446.0,1.46990059]
[1673395240142,2.24916535,17447.0,17446.0,1.46990059]
[1673395240489,2.60841435,17447.0,17446.0,1.46980824]
[1673395240641,2.60841435,17447.0,17446.0,1.46990059]
[1673395240911,2.60841435,17447.0,17446.0,1.46980824]
[1673395241904,0.44819774,17447.0,17446.0,1.46990059]
[1673395242162,0.19073891,17447.0,17446.0,2.05926606]
[1673395242422,0.19073891,17447.0,17446.0,2.35926606]
[1673395242680,0.019115,17447.0,17446.0,2.35926606]
[1673395245724,0.019115,17447.0,17446.0,2.05917371]
[1673395246226,0.019115,17447.0,17446.0,2.35917371]
[1673395247011,0.019115,17447.0,17446.0,2.35934941]
[1673395247255,0.019115,17447.0,17446.0,2.05934941]
[1673395247507,0.019115,17447.0,17446.0,2.35934941]
[1673395248092,0.019115,17447.0,17446.0,2.05934941]
[1673395249055,0.019115,17447.0,17446.0,2.35934941]
[1673395249319,0.019115,17447.0,17446.0,2.05934941]
[1673395250052,1.16562538,17447.0,17446.0,2.05934941]
[1673395253511,0.019115,17447.0,17446.0,2.35934941]
[1673395254998,0.019115,17447.0,17446.0,2.05934941]
[1673395255221,1.05094262,17447.0,17446.0,1.46980824]
[1673395255437,1.66765045,17447.0,17446.0,1.46980824]
[1673395255656,1.56765045,17447.0,17446.0,1.46980824]
[1673395256467,1.22647662,17447.0,17446.0,1.46980824]
[1673395257534,0.53087291,17447.0,17446.0,1.46980824]
[1673395258285,0.17162391,17447.0,17446.0,1.46980824]
[1673395258551,1.3181466,17447.0,17446.0,1.46980824]
[1673395258828,1.6773956,17447.0,17446.0,1.46980824]
[1673395259067,1.14652269,17447.0,17446.0,1.46980824]
[1673395259586,1.21562903,17448.0,17446.0,1.46980824]
[1673395260127,0.359249,17447.0,17446.0,1.46998394]
[1673395260646,1.21562903,17448.0,17446.0,1.46898394]
[1673395260893,1.21562903,17448.0,17446.0,1.47498394]
[1673395261161,0.359249,17447.0,17446.0,1.47498394]
[1673395261401,1.21562903,17448.0,17446.0,1.47498394]
[1673395261644,1.21562903,17448.0,17446.0,1.46898394]
[1673395262424,1.21562903,17448.0,17446.0,1.47480824]
[1673395262924,0.17162391,17448.0,17447.0,0.52286841]
[1673395263182,0.17162391,17448.0,17447.0,1.66919641]
[1673395263956,0.17162391,17448.0,17447.0,1.91919641]
[1673395264195,0.17162391,17448.0,17447.0,1.92819641]
[1673395264718,0.53087291,17448.0,17447.0,1.92819641]
[1673395265477,0.53087291,17448.0,17447.0,1.405328]
[1673395265727,0.78833174,17448.0,17447.0,1.405328]
[1673395267325,0.42908274,17448.0,17447.0,1.405328]
[1673395267592,0.53087291,17448.0,17447.0,1.405328]
[1673395267837,1.67737115,17448.0,17447.0,1.405328]
[1673395268632,1.93482998,17448.0,17447.0,1.405328]
[1673395268902,0.78833174,17448.0,17447.0,1.405328]
[1673395269393,1.84151993,17448.0,17447.0,1.405328]
[1673395269657,1.66989602,17448.0,17447.0,1.405328]
[1673395270153,1.66989602,17448.0,17447.0,0.832164]
[1673395270917,1.84159705,17448.0,17447.0,0.832164]
[1673395271163,2.44064939,17448.0,17447.0,0.832164]
[1673395271420,2.6466457,17448.0,17447.0,0.832164]
[1673395272197,2.6466457,17448.0,17447.0,0.259]
[1673395272487,2.44076687,17448.0,17447.0,0.259]
[1673395272822,2.09734299,17448.0,17447.0,0.259]
[1673395273297,2.64549001,17448.0,17447.0,0.259]
[1673395273547,2.64548095,17448.0,17447.0,0.259]
[1673395274063,2.64432244,17448.0,17447.0,0.259]
[1673395274328,2.09734299,17448.0,17447.0,0.259]
[1673395275102,2.64431767,17448.0,17447.0,0.259]
[1673395275378,2.64437056,17448.0,17447.0,0.259]
[1673395276403,2.09734299,17448.0,17447.0,0.259]
[1673395277171,3.24393737,17448.0,17447.0,0.259]
[1673395277419,3.24393737,17448.0,17447.0,0.832164]
[1673395277912,3.24393737,17448.0,17447.0,0.83225635]
[1673395278174,3.24393737,17448.0,17447.0,0.832164]
[1673395280030,3.24434249,17448.0,17447.0,0.832164]
[1673395280329,2.81477751,17448.0,17447.0,0.832164]
[1673395280591,3.24434237,17448.0,17447.0,0.832164]
[1673395280815,2.09774799,17448.0,17447.0,0.832164]
[1673395282086,2.21517042,17448.0,17447.0,0.832164]
[1673395282324,1.66818313,17448.0,17447.0,0.832164]
[1673395282824,1.66818313,17448.0,17447.0,0.259]
[1673395283382,2.21511029,17448.0,17447.0,0.259]
[1673395283620,1.66818313,17448.0,17447.0,0.259]
[1673395283875,2.21511029,17448.0,17447.0,0.259]
[1673395284133,2.21511029,17448.0,17447.0,0.25888113]
[1673395286285,2.81476389,17448.0,17447.0,0.25888113]
[1673395286540,3.24428548,17448.0,17447.0,0.25888113]
[1673395286801,2.81476389,17448.0,17447.0,0.25888113]
[1673395288596,3.36151974,17448.0,17447.0,0.25888113]
[1673395289379,2.21493898,17448.0,17447.0,0.25888113]
[1673395291493,2.21493655,17448.0,17447.0,0.25888113]
[1673395291759,1.30893413,17448.0,17447.0,0.25888113]
[1673395292019,1.66818313,17448.0,17447.0,0.25888113]
[1673395292525,2.09766022,17448.0,17447.0,0.25888113]
[1673395292791,2.44124,17448.0,17447.0,0.25888113]
[1673395293043,2.081991,17448.0,17447.0,0.25888113]
[1673395293348,2.44124,17448.0,17447.0,0.25888113]
[1673395293600,2.081991,17448.0,17447.0,0.25888113]
[1673395293871,2.44124,17448.0,17447.0,0.25888113]
[1673395295767,3.24425505,17448.0,17447.0,0.25888113]
[1673395299010,3.36160676,17448.0,17447.0,0.25888113]
[1673395299290,2.21501193,17448.0,17447.0,0.25888113]
[1673395299547,1.30893413,17448.0,17447.0,0.25888113]
[1673395299809,1.66818313,17448.0,17447.0,0.25888113]
[1673395300632,1.30893413,17448.0,17447.0,0.25888113]
[1673395300901,2.09768711,17448.0,17447.0,0.25888113]
[1673395301437,1.73843811,17448.0,17447.0,0.25888113]
[1673395301730,1.66818313,17448.0,17447.0,0.25888113]
[1673395301988,2.09769717,17448.0,17447.0,0.25888113]
[1673395302247,2.21500467,17448.0,17447.0,0.25888113]
[1673395302502,2.21500204,17448.0,17447.0,0.25888113]
[1673395303069,2.09769817,17448.0,17447.0,0.25888113]
[1673395303603,2.64451944,17448.0,17447.0,0.25888113]
[1673395303864,2.09775601,17448.0,17447.0,0.25888113]
[1673395304126,2.21494648,17448.0,17447.0,0.25888113]
[1673395304394,1.66818313,17448.0,17447.0,0.25888113]
[1673395305822,2.81478036,17448.0,17447.0,0.25888113]
[1673395306116,3.36153287,17448.0,17447.0,0.25888113]
[1673395306373,2.81478036,17448.0,17447.0,0.25888113]
[1673395306607,3.36158342,17448.0,17447.0,0.25888113]
[1673395307644,3.36152025,17448.0,17447.0,0.25888113]
[1673395308409,2.81478036,17448.0,17447.0,0.25888113]
[1673395308649,3.36163226,17448.0,17447.0,0.25888113]
[1673395308900,2.81478036,17448.0,17447.0,0.25888113]
[1673395309457,3.3615193,17448.0,17447.0,0.25888113]
[1673395309670,3.33011724,17448.0,17447.0,0.25888113]
[1673395309904,3.87685618,17448.0,17447.0,0.25888113]
[1673395310160,2.81478036,17448.0,17447.0,0.25888113]
[1673395310418,2.18352001,17448.0,17447.0,0.25888113]
[1673395311215,2.73031341,17448.0,17447.0,0.25877097]
[1673395312491,2.2149695,17448.0,17447.0,0.25877097]
[1673395312759,1.66818313,17448.0,17447.0,0.25877097]
[1673395313309,2.21491363,17448.0,17447.0,0.25877097]
[1673395313536,2.21490433,17448.0,17447.0,0.25877097]
[1673395314068,1.66818313,17448.0,17447.0,0.25877097]
[1673395315226,2.81479595,17448.0,17447.0,0.25877097]
[1673395317322,2.88526875,17448.0,17447.0,0.83193497]
[1673395318102,3.24451775,17448.0,17447.0,0.83193497]
[1673395319664,2.81479595,17448.0,17447.0,0.83193497]
[1673395319912,1.66818313,17448.0,17447.0,0.83193497]
[1673395320941,2.2149095,17448.0,17447.0,0.83193497]
[1673395321190,1.66818313,17448.0,17447.0,0.83193497]
[1673395323809,4.53462095,17448.0,17447.0,0.83193497]
[1673395325113,2.21494937,17448.0,17447.0,0.83193497]
[1673395325337,1.66818313,17448.0,17447.0,0.83193497]
[1673395328245,1.48715274,17448.0,17447.0,0.83193497]
[1673395331791,1.12790374,17448.0,17447.0,0.83193497]
[1673395332061,1.48715274,17448.0,17447.0,0.83193497]
[1673395332537,0.59905234,17448.0,17447.0,0.83193497]
[1673395332835,1.02880733,17448.0,17447.0,0.82221766]
[1673395333359,1.13279724,17448.0,17447.0,0.83193497]
[1673395333619,1.73184958,17448.0,17447.0,0.83193497]
[1673395334173,1.80237229,17448.0,17447.0,0.83193497]
[1673395334433,2.51689079,17448.0,17447.0,0.83193497]
[1673395334701,4.02271319,17448.0,17447.0,0.83193497]
[1673395336304,4.0932583,17448.0,17447.0,0.83193497]
[1673395337626,4.02271319,17448.0,17447.0,0.83193497]
[1673395338538,4.4524908,17448.0,17447.0,0.83193497]
[1673395338800,3.3059174,17448.0,17447.0,0.83193497]
[1673395339064,2.87613979,17448.0,17447.0,0.83193497]
[1673395340416,2.01661309,17448.0,17447.0,0.83193497]
[1673395341952,2.44638928,17448.0,17447.0,0.83193497]
[1673395342466,2.44638922,17448.0,17447.0,0.83193497]
[1673395342730,2.08714022,17448.0,17447.0,0.83193497]
[1673395343531,2.43094425,17448.0,17447.0,0.83193497]
[1673395344495,2.79019325,17448.0,17447.0,0.83193497]
[1673395344996,3.93675898,17448.0,17447.0,0.83193497]
[1673395346306,3.93675898,17448.0,17447.0,1.40509897]
[1673395347818,2.09195529,17448.0,17447.0,1.40509897]
[1673395348071,3.13877263,17448.0,17447.0,1.40509897]
[1673395348371,2.88098042,17448.0,17447.0,1.40509897]
[1673395348834,2.88575081,17448.0,17447.0,1.40509897]
[1673395349340,3.14352571,17448.0,17447.0,1.40509897]
[1673395349589,2.52650181,17448.0,17447.0,1.40509897]
[1673395349834,2.78427692,17448.0,17447.0,1.40509897]
[1673395350082,1.20793506,17448.0,17447.0,1.40509897]
[1673395350334,1.63771119,17448.0,17447.0,1.40509897]
[1673395350599,1.20793506,17448.0,17447.0,1.40509897]
[1673395350902,1.63771119,17448.0,17447.0,1.40509897]
[1673395351107,1.37993608,17448.0,17447.0,1.40509897]
[1673395351346,1.98182409,17448.0,17447.0,1.40509897]
[1673395351595,2.34107309,17448.0,17447.0,1.40509897]
[1673395351854,3.18230931,17448.0,17447.0,1.40509897]
[1673395352120,2.6363779,17448.0,17447.0,0.83184539]
[1673395352376,3.18225054,17448.0,17447.0,0.83184539]
[1673395352652,2.6363779,17448.0,17447.0,0.83184539]
[1673395353445,3.18225652,17448.0,17447.0,0.83184539]
[1673395353726,2.75248039,17448.0,17447.0,0.83184539]
[1673395353991,2.75248039,17448.0,17447.0,0.25868139]
[1673395353992,2.63120463,17448.0,17447.0,0.25868139]
[1673395354275,3.14654151,17448.0,17447.0,0.25868139]
[1673395354529,5.14072556,17448.0,17447.0,0.25868139]
[1673395354834,0.09245926,17446.0,17444.0,0.72040182]
[1673395355115,0.77351654,17445.0,17444.0,0.72040182]
[1673395355372,0.96087188,17445.0,17444.0,1.29366482]
[1673395355634,0.60162288,17445.0,17444.0,1.24524484]
[1673395356436,0.60262288,17445.0,17444.0,1.38624484]
[1673395356937,0.96187188,17445.0,17444.0,0.714263]
[1673395357574,1.67826843,17445.0,17444.0,0.714263]
[1673395357813,1.31901943,17445.0,17444.0,0.141]
[1673395358057,1.1469976,17445.0,17444.0,0.141]
[1673395360171,1.1469976,17445.0,17444.0,0.714263]
[1673395360172,0.88915985,17445.0,17444.0,0.714263]
[1673395360951,0.88915985,17445.0,17444.0,1.287526]
[1673395362611,1.1469976,17445.0,17444.0,1.287526]
[1673395362874,1.1469976,17445.0,17444.0,0.141]
[1673395363970,2.29369339,17445.0,17444.0,0.141]
[1673395364251,2.65294239,17445.0,17444.0,0.131]
[1673395364513,1.85016209,17445.0,17444.0,0.131]
[1673395365034,1.49091309,17445.0,17444.0,0.131]
[1673395365549,1.31868408,17445.0,17444.0,0.131]
[1673395365807,1.67793308,17445.0,17444.0,0.131]
[1673395366922,1.31868408,17445.0,17444.0,0.131]
[1673395367428,1.67793308,17445.0,17444.0,0.131]
[1673395369281,2.25116308,17445.0,17444.0,0.131]
[1673395370346,3.39792268,17445.0,17444.0,0.131]
[1673395371081,3.57015169,17445.0,17444.0,0.131]
[1673395371337,3.3978276,17445.0,17444.0,0.131]
[1673395371596,3.94065745,17445.0,17444.0,0.131]
[1673395372120,4.63298845,17445.0,17444.0,0.131]
[1673395372380,4.46061905,17445.0,17444.0,0.131]
[1673395372906,3.94061214,17445.0,17444.0,0.131]
[1673395373196,2.79385254,17445.0,17444.0,0.131]
[1673395373465,2.09177369,17445.0,17444.0,0.131]
[1673395373720,3.02425269,17445.0,17444.0,0.131]
[1673395373975,2.82425269,17445.0,17444.0,0.131]
[1673395375545,2.65201165,17445.0,17444.0,0.131]
[1673395375835,1.71953265,17445.0,17444.0,0.131]
[1673395377356,1.50555165,17445.0,17444.0,0.131]
[1673395378688,2.07878165,17445.0,17444.0,0.21707826]
[1673395378948,2.82425269,17445.0,17444.0,0.21707826]
[1673395379198,3.19245053,17445.0,17444.0,0.21707826]
[1673395379753,4.33924743,17445.0,17444.0,0.21707826]
[1673395381338,4.14257732,17445.0,17444.0,0.21707826]
[1673395381359,4.14257894,17445.0,17444.0,0.21707826]
[1673395381595,1.31932044,17445.0,17444.0,0.86353264]
[1673395382116,1.1477969,17445.0,17444.0,0.86353264]
[1673395382378,0.001,17445.0,17444.0,0.86353264]
[1673395386185,0.001,17445.0,17444.0,1.16353264]
[1673395386651,0.001,17445.0,17444.0,1.82278164]
[1673395386905,0.001,17445.0,17444.0,1.46353264]
[1673395387165,0.001,17445.0,17444.0,1.16353264]
[1673395387945,0.001,17445.0,17444.0,1.46353264]
[1673395388183,0.001,17445.0,17444.0,1.16353264]
[1673395389473,0.17252354,17445.0,17444.0,1.16353264]
[1673395389729,1.31921473,17445.0,17444.0,1.16353264]
[1673395390505,1.57657674,17445.0,17444.0,0.86353264]
[1673395390754,1.31921473,17445.0,17444.0,0.86353264]
[1673395391027,1.57657674,17445.0,17444.0,0.86353264]
[1673395393577,1.74883833,17445.0,17444.0,0.86353264]
[1673395394097,1.57685304,17445.0,17444.0,0.86353264]
[1673395394652,0.43016185,17445.0,17444.0,0.86353264]
[1673395398584,1.31949725,17445.0,17444.0,0.86353264]
[1673395398856,1.31949725,17445.0,17444.0,1.16353264]
[1673395399072,1.14769741,17445.0,17444.0,1.16353264]
[1673395400563,1.31949725,17445.0,17444.0,1.16353264]
[1673395402034,0.17279984,17445.0,17444.0,1.16353264]
[1673395402254,0.17279984,17445.0,17444.0,0.86353264]
[1673395403069,1.15665609,17445.0,17444.0,0.21707826]
[1673395403339,1.68789038,17445.0,17444.0,0.21707826]
[1673395403602,1.85966566,17445.0,17444.0,0.21707826]
[1673395403864,1.85966566,17445.0,17444.0,1.50065991]
[1673395403865,0.51656041,17445.0,17444.0,1.50065991]
[1673395404685,1.11615601,17445.0,17444.0,0.21707826]
[1673395405430,0.94438073,17445.0,17444.0,0.21707826]
[1673395407306,2.09104685,17445.0,17444.0,0.21707826]
[1673395409105,2.00462373,17445.0,17444.0,0.21707826]
[1673395409374,2.17640654,17445.0,17444.0,0.21707826]
[1673395409730,1.02974042,17445.0,17444.0,0.21707826]
[1673395412280,0.43014482,17445.0,17444.0,0.51707826]
[1673395412494,0.17278281,17445.0,17444.0,1.65562064]
[1673395412700,0.17278281,17445.0,17444.0,1.95562064]
[1673395413637,0.17278281,17445.0,17444.0,1.38235764]
[1673395413927,0.17278281,17445.0,17444.0,0.78235764]
[1673395414459,0.43014482,17445.0,17444.0,0.78235764]
[1673395414713,0.43014482,17445.0,17444.0,1.35562064]
[1673395416301,1.57682753,17445.0,17444.0,1.35562064]
[1673395418601,1.92061266,17445.0,17444.0,1.35562064]
[1673395418867,1.57682753,17445.0,17444.0,1.35562064]
[1673395419111,1.92061266,17445.0,17444.0,1.35562064]
[1673395419390,1.57682753,17445.0,17444.0,1.35562064]
[1673395419675,0.60214714,17445.0,17444.0,1.35562064]
[1673395425115,1.74882873,17445.0,17444.0,1.35562064]
[1673395426180,0.60214714,17445.0,17444.0,1.35562064]
[1673395430646,0.60214714,17445.0,17444.0,1.65562064]
[1673395430905,0.60214714,17445.0,17444.0,1.35562064]
[1673395431408,0.43029007,17445.0,17444.0,1.35562064]
[1673395431937,0.60214714,17445.0,17444.0,1.35562064]
[1673395433450,0.60214714,17445.0,17444.0,1.34562064]
[1673395434218,1.74884623,17445.0,17444.0,1.34562064]
[1673395436001,0.60214714,17445.0,17444.0,1.34562064]
[1673395437307,0.60214714,17445.0,17444.0,1.33562064]
[1673395439529,0.43029473,17445.0,17444.0,1.33562064]
[1673395440031,0.43029473,17445.0,17444.0,1.99486964]
[1673395441652,0.43029473,17445.0,17444.0,1.63562064]
[1673395441978,0.43029473,17445.0,17444.0,2.20888364]
[1673395442241,0.43029473,17445.0,17444.0,2.56813264]
[1673395443006,0.43029473,17445.0,17444.0,1.99486964]
[1673395443420,0.43029473,17445.0,17444.0,1.63562064]
[1673395443650,0.43029473,17445.0,17444.0,1.33562064]
[1673395443899,1.57695196,17445.0,17444.0,1.33562064]
[1673395444127,1.57695196,17445.0,17444.0,1.63562064]
[1673395444792,1.57695196,17445.0,17444.0,1.33562064]
[1673395446622,1.57695196,17445.0,17444.0,1.90888364]
[1673395447545,1.57695196,17445.0,17444.0,1.33562064]
[1673395447821,1.57695196,17445.0,17444.0,1.63562064]
[1673395448080,1.57695196,17445.0,17444.0,1.33562064]
[1673395449098,0.43029473,17445.0,17444.0,1.33562064]
[1673395450663,0.43029473,17445.0,17444.0,1.90888364]
[1673395451441,0.43029473,17445.0,17444.0,1.33562064]
[1673395452686,0.43029473,17445.0,17444.0,1.90888364]
[1673395453214,1.57695628,17445.0,17444.0,2.20888364]
[1673395454817,1.57695628,17445.0,17444.0,1.90888364]
[1673395455033,0.43029473,17445.0,17444.0,1.90888364]
[1673395455253,0.43029473,17445.0,17444.0,2.26813264]
[1673395455501,0.43029473,17445.0,17444.0,1.90888364]
[1673395456816,0.43029473,17445.0,17444.0,1.33562064]
[1673395458848,0.43029473,17445.0,17444.0,1.32562064]
[1673395461607,0.43029473,17445.0,17444.0,1.89888364]
[1673395463382,1.5769658,17445.0,17444.0,1.89888364]
[1673395464949,1.74881821,17445.0,17444.0,1.32562064]
[1673395466304,1.57695417,17445.0,17444.0,2.53658364]
[1673395466547,0.17292109,17445.0,17444.0,2.53658364]
[1673395466752,0.17292109,17445.0,17444.0,2.26663264]
[1673395467008,0.4302831,17445.0,17444.0,2.26663264]
[1673395467277,0.4302831,17445.0,17444.0,1.90738364]
[1673395468298,0.4302831,17445.0,17444.0,2.26663264]
[1673395471331,0.4302831,17445.0,17444.0,2.56663264]
[1673395471798,0.4302831,17445.0,17444.0,1.90738364]
[1673395472015,0.4302831,17445.0,17444.0,2.20738364]
[1673395472748,0.4302831,17445.0,17444.0,1.90738364]
[1673395473001,1.5769328,17445.0,17444.0,1.90738364]
[1673395474259,1.5769328,17445.0,17444.0,2.20738364]
[1673395474709,1.31957079,17445.0,17444.0,2.20738364]
[1673395475507,1.5769328,17445.0,17444.0,1.90738364]
[1673395475763,0.17292109,17445.0,17444.0,2.20738364]
[1673395476014,0.17292109,17445.0,17444.0,2.37893969]
[1673395476265,0.17292109,17445.0,17444.0,2.20738364]
[1673395477282,0.17292109,17445.0,17444.0,1.90738364]
[1673395477544,0.17292109,17445.0,17444.0,2.20738364]
[1673395481893,0.4302831,17445.0,17444.0,2.20738364]
[1673395482189,0.17292109,17445.0,17444.0,2.20738364]
[1673395482730,0.4302831,17445.0,17444.0,2.20738364]
[1673395482981,2.2003559,17445.0,17444.0,0.76034126]
[1673395483251,2.54414103,17445.0,17444.0,0.76034126]
[1673395483495,2.37221994,17445.0,17444.0,0.76034126]
[1673395483997,2.73146894,17445.0,17444.0,0.76034126]
[1673395484312,2.37221994,17445.0,17444.0,0.76034126]
[1673395484548,2.37221994,17445.0,17444.0,1.33360426]
[1673395485339,2.36391994,17445.0,17444.0,1.33360426]
[1673395488415,2.1920468,17445.0,17444.0,1.33360426]
[1673395488661,0.421974,17445.0,17444.0,1.63360426]
[1673395489447,0.421974,17445.0,17444.0,2.35168534]
[1673395492300,1.56867136,17445.0,17444.0,2.05168534]
[1673395493048,1.7405445,17445.0,17444.0,2.05168534]
[1673395493370,1.56866739,17445.0,17444.0,2.05168534]
[1673395493810,1.91245252,17445.0,17444.0,2.05168534]
[1673395494305,1.7405445,17445.0,17444.0,2.05168534]
[1673395494814,2.0997935,17445.0,17444.0,2.05168534]
[1673395495051,1.7405445,17445.0,17444.0,2.05168534]
[1673395495306,1.56866335,17445.0,17444.0,2.05168534]
[1673395495802,1.91244848,17445.0,17444.0,2.05168534]
[1673395496061,0.42196599,17445.0,17444.0,2.05168534]
[1673395497565,0.59384714,17445.0,17444.0,2.05168534]
[1673395497812,0.76575025,17445.0,17444.0,2.05168534]
[1673395498311,0.42196512,17445.0,17444.0,2.05168534]
[1673395498591,0.59384714,17445.0,17444.0,2.05168534]
[1673395498913,0.42196268,17445.0,17444.0,2.05168534]
[1673395500242,0.59384714,17445.0,17444.0,2.05168534]
[1673395500501,0.76574591,17445.0,17444.0,2.05168534]
[1673395501030,0.59384714,17445.0,17444.0,2.05168534]
[1673395501779,1.74053137,17445.0,17444.0,2.05168534]
[1673395502312,2.09978037,17445.0,17444.0,2.05168534]
[1673395502775,1.74053137,17445.0,17444.0,2.05168534]
[1673395503023,1.56864247,17445.0,17444.0,2.05168534]
[1673395504023,0.42195824,17445.0,17444.0,2.05168534]
[1673395504771,0.59384714,17445.0,17444.0,2.05168534]
[1673395505701,0.59384714,17445.0,17444.0,1.47842234]
[1673395508501,1.02357855,17445.0,17444.0,1.47842234]
[1673395508789,0.59384714,17445.0,17444.0,1.47842234]
[1673395509017,0.59384714,17445.0,17444.0,2.05168534]
[1673395511522,1.74055213,17445.0,17444.0,2.05168534]
[1673395512512,2.09980113,17445.0,17444.0,2.05168534]
[1673395512767,2.09980113,17445.0,17444.0,1.47842234]
[1673395513301,1.74055213,17445.0,17444.0,1.47842234]
[1673395513826,1.92022153,17445.0,17444.0,1.47842234]
[1673395514081,2.17804866,17445.0,17444.0,1.47842234]
[1673395514338,1.74831703,17445.0,17444.0,1.47842234]
[1673395514877,1.74831703,17445.0,17444.0,2.05168534]
[1673395515342,0.60161204,17445.0,17444.0,2.05168534]
[1673395515883,0.60161204,17445.0,17444.0,1.47842234]
[1673395520580,0.77351654,17445.0,17444.0,1.47842234]
[1673395520843,0.60166269,17445.0,17444.0,1.47842234]
[1673395521113,0.77351654,17445.0,17444.0,1.47842234]
[1673395521368,1.92023152,17445.0,17444.0,1.47842234]
[1673395521839,1.74837437,17445.0,17444.0,1.47842234]
[1673395522651,0.60165939,17445.0,17444.0,1.47842234]
[1673395523142,1.0313908,17445.0,17444.0,1.47842234]
[1673395523412,0.77351654,17445.0,17444.0,1.47842234]
[1673395524252,1.3484953,17445.0,17444.0,1.47842234]
[1673395524509,1.34849531,17445.0,17444.0,1.47842234]
[1673395524766,0.77351654,17445.0,17444.0,1.47842234]
[1673395527074,1.34846944,17445.0,17444.0,1.47842234]
[1673395527573,1.34846282,17445.0,17444.0,1.47842234]
[1673395527804,0.77351654,17445.0,17444.0,1.47842234]
[1673395528050,1.34846335,17445.0,17444.0,1.47842234]
[1673395528290,0.77351654,17445.0,17444.0,1.47842234]
[1673395528559,1.34931518,17445.0,17444.0,1.47842234]
[1673395529868,0.77351654,17445.0,17444.0,1.47842234]
[1673395530383,1.34931761,17445.0,17444.0,1.47842234]
[1673395530895,2.49603632,17445.0,17444.0,1.47842234]
[1673395533513,2.49603632,17445.0,17444.0,0.18707826]
[1673395533514,3.03302993,17445.0,17444.0,0.18707826]
[1673395533768,3.39235559,17445.0,17444.0,0.18707826]
[1673395534015,2.6892448,17445.0,17444.0,0.18707826]
[1673395534524,2.6892448,17445.0,17444.0,0.1869636]
[1673395535028,1.54252609,17445.0,17444.0,0.1869636]
[1673395535558,1.00421425,17445.0,17444.0,0.1869636]
[1673395535798,1.34805395,17445.0,17444.0,0.1869636]
[1673395538852,1.00421425,17445.0,17444.0,0.1869636]
[1673395539910,2.36976992,17445.0,17444.0,0.1869636]
[1673395540165,3.26725583,17445.0,17444.0,0.1869636]
[1673395540724,2.68918454,17445.0,17444.0,0.1869636]
[1673395541239,2.15094763,17445.0,17444.0,0.1869636]
[1673395541483,2.49479001,17445.0,17444.0,0.1869636]
[1673395541732,2.49478758,17445.0,17444.0,0.1869636]
[1673395542834,1.3480542,17445.0,17444.0,0.1869636]
[1673395545640,0.77357136,17445.0,17444.0,0.84728566]
[1673395545884,0.77357136,17445.0,17444.0,1.42054866]
[1673395546881,1.00305345,17445.0,17444.0,0.1869636]
[1673395547402,0.60175172,17445.0,17444.0,1.48146647]
[1673395548681,0.17192052,17445.0,17444.0,2.18565333]
[1673395548941,0.17192052,17445.0,17444.0,2.71397847]
[1673395549440,0.42981218,17446.0,17444.0,2.71397847]
[1673395549696,0.42981218,17446.0,17445.0,0.34078]
[1673395549936,0.42981218,17446.0,17445.0,0.64078]
[1673395550191,0.42981218,17446.0,17445.0,1.56656402]
[1673395550793,0.42981218,17446.0,17445.0,1.66206004]
[1673395550973,0.43281218,17446.0,17445.0,1.73006004]
[1673395551709,0.17492052,17446.0,17445.0,1.73006004]
[1673395551966,0.43281218,17446.0,17445.0,1.73006004]
[1673395552739,0.77667224,17446.0,17445.0,1.73006004]
[1673395552991,0.60475172,17446.0,17445.0,1.73006004]
[1673395553253,0.43271729,17446.0,17445.0,1.73006004]
[1673395556768,0.43271729,17446.0,17445.0,1.7749979]
[1673395557312,0.003,17446.0,17445.0,2.7074769]
[1673395557833,0.003,17446.0,17445.0,2.3482279]
[1673395558614,0.17482563,17446.0,17445.0,2.3482279]
[1673395559893,1.14963829,17446.0,17445.0,2.3482279]
[1673395560136,1.32146392,17446.0,17445.0,2.3482279]
[1673395561905,1.32146392,17446.0,17445.0,2.30329004]